{"text_format":"3","workbook":"xlsx","n_sheets":2,"sheets":["Arkusz1","Pomocnicze"],"not_rendered":{"images":1,"defined_names":3,"comments":1},"read":"whole","date_system":"1900"}

{"sheet":"Arkusz1","index":0,"n_rows":77,"n_cols":10,"rows_kept":77,"merged":[[13,0,13,9],[15,0,15,2],[15,4,15,6],[15,8,15,9],[16,0,16,2],[16,4,16,6],[16,8,16,9],[18,0,18,9],[42,0,42,7],[45,4,45,9],[47,0,47,3],[47,4,47,6],[48,0,48,3],[48,4,48,6],[49,0,49,3],[49,4,49,6],[50,0,50,3],[50,4,50,6],[51,0,51,3],[51,4,51,6],[55,1,55,2],[55,5,55,9],[56,1,56,2],[56,5,56,9],[60,1,60,9],[61,1,61,9],[62,1,62,5],[69,4,69,9],[71,4,71,8],[72,4,72,8],[76,7,76,8]]}
{"$rows_empty":13}
["SPRAWOZDANIE FINANSOWE"]
[]
["Rodzaj wnioskodawcy",{"$nulls":3},"Nazwa organizacji",{"$nulls":3},"Numer umowy mikrodotacji"]
["(wybierz z listy rodzaj wnioskodawcy)"]
[]
[{"$f":"IF(A17=Pomocnicze!A11,\"Wybierz z listy rodzaj wnioskodawcy!\",\"\")","v":"Wybierz z listy rodzaj wnioskodawcy!"}]
[]
["Lp.","Kategoria wydatków \n(wybierz z listy)","Numer pozycji budżetowej w danej kategorii","Opis wydatku","Numer dokumentu (faktury/rachunku)","Data wystawienia dokumentu \n(rrrr-mm-dd)","Data zapłaty \n(rrrr-mm-dd)","Sposób zapłaty \n(G - gotówka, \nP - przelew)","Kwota brutto dokumentu","Kwota kwalifikowalna wydatku"]
[1]
[{"$f":"A22+1","v":2}]
[{"$f":"A23+1","v":3}]
[4]
[5]
[6]
[7]
[{"$f":"A28+1","v":8}]
[9]
[10]
[11]
[12]
[13]
[14]
[15]
[16]
[17]
[18]
[19]
[{"$f":"A40+1","v":20}]
[]
[{"$f":"IF(J43>10000,\"Błąd! Suma wydatków nie może być wyższa niż 10 000 zł\",IF(J43>H53,\"Błąd! Suma wykazanych wydatków przekracza sumę wydatków zaplanowanych w budżecie.\",\"\"))","v":""},{"$nulls":7},"Suma:  ",{"$f":"SUM(Tabela2[Kwota kwalifikowalna wydatku])","v":{"v":0,"d":"0.00"}}]
[]
[]
[{"$nulls":4},"Podsumowanie wydatków"]
[]
[{"$nulls":4},"Kategoria wydatków",null,null,"Wydatki zaplanowane w budżecie","Wydatki wykazane w sprawozdaniu","Pozostało"]
[{"$f":"IFERROR(IF(AND(A17=Pomocnicze!A13,Arkusz1!I49/Arkusz1!I53>0.4),\"Błąd! Wydatki w tej kategorii nie mogą przekroczyć 40% wydatków ogółem.\",\"\"),\"\")","v":""},{"$nulls":3},{"$f":"Pomocnicze!A2","v":"I.1. Koszty merytoryczne i koszty promocji - Koszty osobowe"},{"$nulls":3},{"$f":"SUMIF($B$22:$B$41,E49,$J$22:$J$41)","v":{"v":0,"d":"0.00"}},{"$f":"H49-I49","v":{"v":0,"d":"0.00"}}]
[{"$nulls":4},{"$f":"Pomocnicze!A3","v":"I.2. Koszty merytoryczne i koszty promocji - Pozostałe koszty merytoryczne"},{"$nulls":3},{"$f":"SUMIF($B$22:$B$41,E50,$J$22:$J$41)","v":{"v":0,"d":"0.00"}},{"$f":"H50-I50","v":{"v":0,"d":"0.00"}}]
[{"$f":"IFERROR(IF(AND(A17=Pomocnicze!A12,Arkusz1!I51/Arkusz1!I53>0.5),\"Błąd! Wydatki w tej kategorii nie mogą przekroczyć 50% wydatków ogółem.\",IF(AND(OR(A17=Pomocnicze!A13,Arkusz1!A17=Pomocnicze!A14),Arkusz1!I51/Arkusz1!I53>0.3),\"Błąd! Wydatki w tej kategorii nie mogą przekroczyć 30% wydatków ogółem.\",\"\")),\"\")","v":""},{"$nulls":3},{"$f":"Pomocnicze!A4","v":"II Koszty rozwoju"},{"$nulls":3},{"$f":"SUMIF($B$22:$B$41,E51,$J$22:$J$41)","v":{"v":0,"d":"0.00"}},{"v":0,"d":"0.00"}]
[{"$f":"IFERROR(IF(I52/I53>0.25,\"Błąd! Wydatki w tej kategorii nie mogą przekroczyć 25% wydatków ogółem.\",\"\"),\"\")","v":""},{"$nulls":3},{"$f":"Pomocnicze!A5","v":"III Koszty obsługi zadania publicznego, w tym koszty administracyjne"},{"$nulls":3},{"$f":"SUMIF($B$22:$B$41,E52,$J$22:$J$41)","v":{"v":0,"d":"0.00"}},{"v":0,"d":"0.00"}]
[{"$nulls":6},"Suma:  ",{"$f":"SUM(H49:H52)","v":{"v":0,"d":"0.00"}},{"$f":"SUM(I49:I52)","v":{"v":0,"d":"0.00"}},{"$f":"SUM(J49:J52)","v":{"v":0,"d":"0.00"}}]
[]
[]
[null,"Data sporządzenia sprawozdania:",{"$nulls":3},"Miejsce przechowywanie dokumentacji związanej z umową"]
[null,"Imię i nazwisko osoby, która sporządziła sprawozdanie:"]
[]
[]
[null,"Oświadczenie"]
[null,"Ja niżej podpisany/a niniejszym oświadczam, że:"]
[null,"1) informacje zawarte w sprawozdaniu są zgodne z prawdą, wydatki w nim wykazane zostały poniosione, a płatności uregulowane,"]
[null,"2) jestem świadomy/a odpowiedzialności wynikającej ze składania fałszywych oświadczeń."]
[]
[]
[null,"(podpis)"]
[]
[]
[]
[{"$nulls":4},"Wypełnia Operator"]
[{"$nulls":4},"Sprawdził: . . . . . . . . . . . . . . . . . . . . . . . . . . . . . ."]
[{"$nulls":4},"Stwierdzam prawidłowość sporządzonego sprawozdania",{"$nulls":4},"tak / nie"]
[{"$nulls":4},"Stwierdzam zgodność sporządzonego sprawozdania z dokumentami źródłowymi (fakturami, dowodami płatności)",{"$nulls":4},"tak / nie"]
[]
[]
[]
[{"$nulls":7},"(data i podpis)"]

{"sheet":"Pomocnicze","index":1,"n_rows":14,"n_cols":1,"rows_kept":14,"hidden":true}
["Kategorie wydatków"]
["I.1. Koszty merytoryczne i koszty promocji - Koszty osobowe"]
["I.2. Koszty merytoryczne i koszty promocji - Pozostałe koszty merytoryczne"]
["II Koszty rozwoju"]
["III Koszty obsługi zadania publicznego, w tym koszty administracyjne"]
[]
[]
[]
[]
["Rodzaj wnioskodawcy"]
["(wybierz z listy rodzaj wnioskodawcy)"]
["MiŚLOP"]
["grupa nieformalna bez patrona"]
["grupa nieformalna z patronem"]